[Event "Torneo Interdepartamental 2019"]
[Site "Montevideo"]
[Date "2019.08.25"]
[Round "4.12"]
[White "Pelaez, Diego"]
[Black "De Cuadro, Dionisio"]
[Result "0-1"]
[ECO "E11"]
[WhiteElo "1619"]
[BlackElo "1654"]
[Annotator "NA"]
[PlyCount "114"]
[EventDate "2019.08.23"]
[EventType "team-tourn"]
[EventCountry "URU"]
[SourceTitle "playchess.com"]
[Source "ChessBase"]
[SourceQuality "1"]
[TimeControl "5400+30"]

1. d4 {[%emt 0:03:41]} Nf6 {[%emt 0:00:00]} 2. c4 {[%emt 0:00:19]} e6 {[%emt 0:00:00]} 3. Nf3 {[%emt 0:00:15]} Bb4+ {[%emt 0:00:02]} 4. Bd2 {[%emt 0:00:21]} Bxd2+ {[%emt 0:00:44]} 5. Nbxd2 {[%emt 0:00:03]} O-O {[%emt 0:00:32]} 6. e3 {[%emt 0:01:55]} d6 {[%emt 0:00:22]} 7. Bd3 {[%emt 0:01:25]} Nbd7 {[%emt 0:00:14]} 8. O-O {[%emt 0:00:13]} c5 {[%emt 0:00:21]} 9. Re1 {[%emt 0:03:13]} cxd4 {[%emt 0:01:50]} 10. exd4 {[%emt 0:10:34]} b6 {[%emt 0:00:26]} 11. Ne4 {[%emt 0:05:03]} Qe7 {[%emt 0:03:59]} 12. Ng3 {[%emt 0:01:49]} Bb7 {[%emt 0:00:24]} 13. Nf5 {[%emt 0:01:38]} Qd8 {[%emt 0:01:27]} 14. Nxd6 {[%emt 0:01:06]} Bc6 {[%emt 0:01:52]} 15. Ne5 {[%emt 0:05:57]} Qc7 {[%emt 0:04:33]} 16. Nxc6 {[%emt 0:06:46]} Qxc6 {[%emt 0:00:03]} 17. Ne4 {[%emt 0:00:25]} Rfd8 {[%emt 0:01:28]} 18. Rc1 {[%emt 0:05:03]} Rac8 {[%emt 0:02:03]} 19. Bb1 {[%emt 0:06:14]} Qc7 {[%emt 0:01:53]} 20. Re3 {[%emt 0:03:44]} Nxe4 {[%emt 0:01:50]} 21. Bxe4 {[%emt 0:02:19]} Nf6 {[%emt 0:00:07]} 22. Bb1 {[%emt 0:00:29]} Qf4 {[%emt 0:00:37]} 23. g3 {[%emt 0:06:07]} Qd6 {[%emt 0:07:38]} 24. Rd3 {[%emt 0:01:46]} h6 {[%emt 0:06:38]} 25. b3 {[%emt 0:01:32]} Kf8 {[%emt 0:07:06]} 26. f3 {[%emt 0:04:16]} Nh7 {[%emt 0:05:38]} 27. Kg2 {[%emt 0:01:23]} Nf6 {[%emt 0:00:26]} 28. Rd2 {[%emt 0:02:42]} Qc6 {[%emt 0:00:41]} 29. Qe2 {[%emt 0:00:52]} g5 {[%emt 0:04:56]} 30. Be4 {[%emt 0:03:17]} Qd6 {[%emt 0:01:14]} 31. Rcd1 {[%emt 0:02:32]} Re8 {[%emt 0:02:10]} 32. Qf2 {[%emt 0:01:06]} Kg7 {[%emt 0:01:57]} 33. d5 {[%emt 0:01:17]} exd5 {[%emt 0:01:58]} 34. Bxd5 {[%emt 0:00:08]} Qe5 {[%emt 0:01:28]} 35. Kf1 {[%emt 0:02:24]} Qf5 {[%emt 0:02:03]} 36. Qg2 {[%emt 0:00:05]} Re3 {[%emt 0:01:15]} 37. g4 {[%emt 0:03:42]} Qe5 {[%emt 0:02:45]} 38. Re2 {[%emt 0:01:22]} Re8 {[%emt 0:01:40]} 39. Rxe3 {[%emt 0:00:48]} Qxe3 {[%emt 0:00:16]} 40. Qf2 {[%emt 0:00:32]} Qf4 {[%emt 0:01:33]} 41. h3 {[%emt 0:01:31]} Re3 {[%emt 0:00:42]} 42. Re1 {[%emt 0:00:30]} Nxd5 {[%emt 0:01:48]} 43. Rxe3 {[%emt 0:05:31]} Nxe3+ {[%emt 0:01:43]} 44. Kg1 {[%emt 0:01:10]} Qe5 {[%emt 0:03:47]} 45. Kh1 {[%emt 0:03:30]} a5 {[%emt 0:04:47]} 46. Qg1 {[%emt 0:01:46]} Qd4 {[%emt 0:01:08]} 47. Qf2 {[%emt 0:00:14]} Qf4 {[%emt 0:01:29]} 48. Qe2 {[%emt 0:00:31]} Qd4 {[%emt 0:00:45]} 49. Qf2 {[%emt 0:00:16]} Qd1+ {[%emt 0:00:45]} 50. Kh2 {[%emt 0:00:07]} Qc2 {[%emt 0:01:36]} 51. Kg3 {[%emt 0:01:16]} Qxf2+ {[%emt 0:00:37]} 52. Kxf2 {[%emt 0:00:02]} Nd1+ {[%emt 0:00:40]} 53. Ke1 {[%emt 0:00:22]} Nc3 {[%emt 0:00:07]} 54. a3 {[%emt 0:00:16]} Kf6 {[%emt 0:00:26]} 55. a4 {[%emt 0:00:12]} Na2 {[%emt 0:00:21]} 56. Kd2 {[%emt 0:00:25]} Ke5 {[%emt 0:00:10]} 57. Ke3 {[%emt 0:01:11]} Nc1 {[%emt 0:00:16]} 0-1

[Event "Torneo Interdepartamental 2019"]
[Site "Montevideo"]
[Date "2019.08.25"]
[Round "5.1"]
[White "Carvalho, Guillermo"]
[Black "Michailov, Matias"]
[Result "1/2-1/2"]
[ECO "A49"]
[WhiteElo "2180"]
[BlackElo "2257"]
[Annotator "ChessBase"]
[PlyCount "52"]
[EventDate "2019.08.23"]
[EventType "team-tourn"]
[EventCountry "URU"]
[SourceTitle "playchess.com"]
[Source "ChessBase"]
[SourceQuality "1"]
[TimeControl "5400+30"]

1. d4 {[%emt 0:00:00]} Nf6 {[%emt 0:07:28]} 2. Nf3 {[%emt 0:00:00]} g6 {[%emt 0:00:06]} 3. g3 {[%emt 0:00:00]} Bg7 {[%emt 0:00:06]} 4. Bg2 {[%emt 0:00:00]} O-O {[%emt 0:00:13]} 5. O-O {[%emt 0:00:03]} d6 {[%emt 0:00:05]} 6. b3 {[%emt 0:00:04]} a5 {[%emt 0:01:12]} 7. a4 {[%emt 0:02:14]} e5 {[%emt 0:02:46]} 8. dxe5 {[%emt 0:00:32]} Nfd7 {[%emt 0:05:16]} 9. Bb2 {[%emt 0:08:41]} dxe5 {[%emt 0:00:22]} 10. Nfd2 {[%emt 0:05:50]} Na6 {[%emt 0:03:06]} 11. Nc4 {[%emt 0:02:44]} Nac5 {[%emt 0:01:25]} 12. Nc3 {[%emt 0:04:30]} c6 {[%emt 0:17:50]} 13. Qd2 {[%emt 0:05:17]} f5 {[%emt 0:06:42]} 14. Rad1 {[%emt 0:01:21]} Qe7 {[%emt 0:05:35]} 15. Ba3 {[%emt 0:19:36]} e4 {[%emt 0:04:54]} 16. e3 {[%emt 0:09:34]} b6 {[%emt 0:10:44]} 17. f3 {[%emt 0:04:00]} exf3 {[%emt 0:06:03]} 18. Bxf3 {[%emt 0:00:30]} Bb7 {[%emt 0:00:42]} 19. Nd6 {[%emt 0:12:31]} Ne5 {[%emt 0:03:59]} 20. Nxb7 {[%emt 0:01:44]} Qxb7 {[%emt 0:04:49]} 21. Bg2 {[%emt 0:01:35]} Qc7 {[%emt 0:02:29]} 22. Bxc5 {[%emt 0:06:02]} bxc5 {[%emt 0:00:07]} 23. Nb5 {[%emt 0:02:12]} Qb6 {[%emt 0:08:25]} 24. Nd6 {[%emt 0:00:53]} c4 {[%emt 0:00:42]} 25. Nxc4 {[%emt 0:04:59]} Nxc4 {[%emt 0:00:05]} 26. bxc4 {[%emt 0:00:05]} Rad8 {[%emt 0:03:48]} 1/2-1/2

[Event "Torneo Interdepartamental 2019"]
[Site "Montevideo"]
[Date "2019.08.25"]
[Round "5.2"]
[White "Braso, Jorge"]
[Black "Coppola, Claudio"]
[Result "0-1"]
[ECO "B70"]
[WhiteElo "2108"]
[BlackElo "2252"]
[Annotator "ChessBase"]
[PlyCount "87"]
[EventDate "2019.08.23"]
[EventType "team-tourn"]
[EventCountry "URU"]
[SourceTitle "playchess.com"]
[Source "ChessBase"]
[SourceQuality "1"]
[TimeControl "5400+30"]

1. e4 {[%emt 0:00:00]} c5 {[%emt 0:08:32]} 2. Nf3 {[%emt 0:00:00]} d6 {[%emt 0:00:02]} 3. d4 {[%emt 0:00:00]} cxd4 {[%emt 0:00:05]} 4. Nxd4 {[%emt 0:00:00]} Nf6 {[%emt 0:00:07]} 5. Nc3 {[%emt 0:00:00]} g6 {[%emt 0:00:05]} 6. g3 {[%emt 0:00:25]} Bg7 {[%emt 0:00:03]} 7. Bg2 {[%emt 0:00:03]} O-O {[%emt 0:00:17]} 8. O-O {[%emt 0:00:42]} Nc6 {[%emt 0:00:11]} 9. Nxc6 {[%emt 0:03:25]} bxc6 {[%emt 0:00:03]} 10. e5 {[%emt 0:00:20]} dxe5 {[%emt 0:00:12]} 11. Qxd8 {[%emt 0:00:14]} Rxd8 {[%emt 0:00:04]} 12. Bxc6 {[%emt 0:00:14]} Rb8 {[%emt 0:01:05]} 13. Rd1 {[%emt 0:04:55]} Rd6 {[%emt 0:09:09]} 14. Rxd6 {[%emt 0:08:41]} exd6 {[%emt 0:00:03]} 15. Nd5 {[%emt 0:04:01]} Nxd5 {[%emt 0:02:44]} 16. Bxd5 {[%emt 0:00:03]} Be6 {[%emt 0:00:53]} 17. Bxe6 {[%emt 0:01:06]} fxe6 {[%emt 0:00:02]} 18. c4 {[%emt 0:03:58]} e4 {[%emt 0:02:06]} 19. Rb1 {[%emt 0:00:08]} d5 {[%emt 0:03:34]} 20. c5 {[%emt 0:01:44]} Bf8 {[%emt 0:00:23]} 21. Bf4 {[%emt 0:00:42]} Re8 {[%emt 0:01:43]} 22. Rc1 {[%emt 0:02:54]} e5 {[%emt 0:01:24]} 23. Bd2 {[%emt 0:00:00]} Kf7 {[%emt 0:05:25]} 24. b4 {[%emt 0:00:00]} Ke6 {[%emt 0:07:59]} 25. b5 {[%emt 0:02:17]} Rb8 {[%emt 0:00:25]} 26. a4 {[%emt 0:00:38]} d4 {[%emt 0:01:26]} 27. c6 {[%emt 0:00:28]} Kd5 {[%emt 0:01:47]} 28. Kf1 {[%emt 0:18:20]} Bc5 {[%emt 0:03:46]} 29. Bg5 {[%emt 0:04:24]} Rc8 {[%emt 0:04:13]} 30. Bf6 {[%emt 0:03:51]} Ba3 {[%emt 0:06:18]} 31. Rb1 {[%emt 0:00:33]} e3 {[%emt 0:01:00]} 32. Rb3 {[%emt 0:06:09]} Bd6 {[%emt 0:01:39]} 33. f4 {[%emt 0:02:49]} exf4 {[%emt 0:00:51]} 34. gxf4 {[%emt 0:00:04]} Kc4 {[%emt 0:01:17]} 35. Rb1 {[%emt 0:00:59]} d3 {[%emt 0:01:29]} 36. Rc1+ {[%emt 0:02:35]} Kd5 {[%emt 0:00:08]} 37. Rc3 {[%emt 0:01:24]} e2+ {[%emt 0:01:14]} 38. Kf2 {[%emt 0:00:44]} Bc5+ {[%emt 0:00:04]} 39. Rxc5+ {[%emt 0:00:13]} Kxc5 {[%emt 0:00:03]} 40. Bc3 {[%emt 0:00:21]} a6 {[%emt 0:01:10]} 41. Ke3 {[%emt 0:00:16]} Re8+ {[%emt 0:00:34]} 42. Kf2 {[%emt 0:00:40]} axb5 {[%emt 0:00:13]} 43. axb5 {[%emt 0:00:02]} Kxb5 {[%emt 0:00:11]} 44. c7 {[%emt 0:00:01]} 0-1

[Event "Torneo Interdepartamental 2019"]
[Site "Montevideo"]
[Date "2019.08.25"]
[Round "5.3"]
[White "Vaz Lacuesta, Leonardo"]
[Black "Torales, Ignacio"]
[Result "1-0"]
[ECO "B33"]
[WhiteElo "2098"]
[BlackElo "1641"]
[Annotator "NA"]
[PlyCount "68"]
[EventDate "2019.08.23"]
[EventType "team-tourn"]
[EventCountry "URU"]
[SourceTitle "playchess.com"]
[Source "ChessBase"]
[SourceQuality "1"]
[TimeControl "5400+30"]

1. e4 {[%emt 0:00:00]} c5 {[%emt 0:00:00]} 2. Nf3 {[%emt 0:00:00]} Nc6 {[%emt 0:00:00]} 3. d4 {[%emt 0:00:18]} cxd4 {[%emt 0:00:00]} 4. Nxd4 {[%emt 0:00:02]} Nf6 {[%emt 0:00:06]} 5. Nc3 {[%emt 0:00:11]} e5 {[%emt 0:00:06]} 6. Ndb5 {[%emt 0:00:20]} d6 {[%emt 0:00:06]} 7. Bg5 {[%emt 0:01:09]} a6 {[%emt 0:00:30]} 8. Na3 {[%emt 0:00:11]} b5 {[%emt 0:00:05]} 9. Bxf6 {[%emt 0:02:27]} gxf6 {[%emt 0:00:21]} 10. Nd5 {[%emt 0:00:06]} f5 {[%emt 0:00:50]} 11. exf5 {[%emt 0:03:50]} Bxf5 {[%emt 0:00:43]} 12. c3 {[%emt 0:00:52]} Bg7 {[%emt 0:03:51]} 13. Qf3 {[%emt 0:01:43]} Be6 {[%emt 0:05:10]} 14. Rd1 {[%emt 0:04:06]} Rc8 {[%emt 0:06:20]} 15. Bd3 {[%emt 0:02:25]} O-O {[%emt 0:04:19]} 16. Bf5 {[%emt 0:08:04]} Ne7 {[%emt 0:05:22]} 17. Nxe7+ {[%emt 0:07:29]} Qxe7 {[%emt 0:00:29]} 18. Qd3 {[%emt 0:02:31]} Bxf5 {[%emt 0:00:28]} 19. Qxf5 {[%emt 0:00:06]} Rfd8 {[%emt 0:03:22]} 20. O-O {[%emt 0:00:53]} Qe6 {[%emt 0:02:23]} 21. Qb1 {[%emt 0:05:40]} f5 {[%emt 0:04:15]} 22. Nc2 {[%emt 0:00:36]} d5 {[%emt 0:06:29]} 23. Rfe1 {[%emt 0:00:16]} e4 {[%emt 0:01:51]} 24. f4 {[%emt 0:06:53]} Qb6+ {[%emt 0:06:26]} 25. Kh1 {[%emt 0:01:17]} d4 {[%emt 0:00:48]} 26. cxd4 {[%emt 0:02:12]} Bxd4 {[%emt 0:00:20]} 27. Re2 {[%emt 0:07:09]} Rd6 {[%emt 0:03:03]} 28. b4 {[%emt 0:03:36]} Kg7 {[%emt 0:03:32]} 29. Nxd4 {[%emt 0:02:22]} Rxd4 {[%emt 0:00:49]} 30. Qb2 {[%emt 0:00:12]} Rcc4 {[%emt 0:01:41]} 31. Red2 {[%emt 0:00:29]} Rxb4 32. Qa1 {[%emt 0:00:06]} e3 {[%emt 0:03:22]} 33. Rxd4 {[%emt 0:00:38]} Qxd4 {[%emt 0:01:28]} 34. Rxd4 Kf8 1-0

[Event "Torneo Interdepartamental 2019"]
[Site "Montevideo"]
[Date "2019.08.25"]
[Round "5.4"]
[White "Campopiano, Julio"]
[Black "Daneri, Martin"]
[Result "0-1"]
[ECO "A89"]
[WhiteElo "1791"]
[BlackElo "2050"]
[Annotator "NA"]
[PlyCount "52"]
[EventDate "2019.08.23"]
[EventType "team-tourn"]
[EventCountry "URU"]
[SourceTitle "playchess.com"]
[Source "ChessBase"]
[SourceQuality "1"]
[TimeControl "5400+30"]

1. c4 {[%emt 0:00:00]} f5 {[%emt 0:02:03]} 2. Nf3 {[%emt 0:02:15]} Nf6 {[%emt 0:00:19]} 3. g3 {[%emt 0:00:15]} g6 {[%emt 0:00:22]} 4. Bg2 {[%emt 0:00:07]} Bg7 {[%emt 0:00:08]} 5. O-O {[%emt 0:02:06]} O-O {[%emt 0:00:08]} 6. d4 {[%emt 0:01:41]} d6 {[%emt 0:00:18]} 7. Nc3 {[%emt 0:00:45]} Nc6 {[%emt 0:00:37]} 8. Rb1 {[%emt 0:20:46]} e5 {[%emt 0:05:31]} 9. d5 {[%emt 0:04:55]} Ne7 {[%emt 0:02:35]} 10. Re1 {[%emt 0:05:04]} h6 {[%emt 0:01:41]} 11. b4 {[%emt 0:06:22]} g5 {[%emt 0:01:25]} 12. Qb3 {[%emt 0:08:21]} Ng6 {[%emt 0:01:12]} 13. c5 {[%emt 0:02:37]} f4 {[%emt 0:03:13]} 14. Bb2 {[%emt 0:06:53]} Qe7 {[%emt 0:03:44]} 15. Rbc1 {[%emt 0:02:40]} e4 {[%emt 0:03:04]} 16. cxd6 {[%emt 0:04:59]} cxd6 {[%emt 0:00:17]} 17. Nd4 {[%emt 0:00:35]} e3 {[%emt 0:01:22]} 18. f3 {[%emt 0:05:05]} fxg3 {[%emt 0:00:43]} 19. hxg3 {[%emt 0:00:43]} Qe5 {[%emt 0:04:27]} 20. Nc2 {[%emt 0:10:34]} Qxg3 {[%emt 0:05:26]} 21. Nxe3 {[%emt 0:02:01]} Nf4 {[%emt 0:03:26]} 22. Rf1 {[%emt 0:04:01]} Bh3 {[%emt 0:05:06]} 23. Rf2 {[%emt 0:00:48]} Bxg2 {[%emt 0:00:19]} 24. Rxg2 {[%emt 0:00:26]} Nxg2 {[%emt 0:00:12]} 25. Nxg2 {[%emt 0:00:07]} Ng4 {[%emt 0:00:50]} 26. Ne4 {[%emt 0:04:11]} Qh2+ {[%emt 0:00:14]} 0-1

[Event "Torneo Interdepartamental 2019"]
[Site "Montevideo"]
[Date "2019.08.25"]
[Round "5.5"]
[White "Lanzilotta, Marcelo"]
[Black "Sierra, Juan Andres"]
[Result "1-0"]
[ECO "B13"]
[WhiteElo "1970"]
[BlackElo "1831"]
[Annotator "NA"]
[PlyCount "65"]
[EventDate "2019.08.23"]
[EventType "team-tourn"]
[EventCountry "URU"]
[SourceTitle "playchess.com"]
[Source "ChessBase"]
[SourceQuality "1"]
[TimeControl "5400+30"]

1. e4 {[%emt 0:00:00]} c6 {[%emt 0:01:05]} 2. d4 {[%emt 0:00:20]} d5 {[%emt 0:00:03]} 3. exd5 {[%emt 0:02:05]} cxd5 {[%emt 0:00:30]} 4. c4 {[%emt 0:00:10]} dxc4 {[%emt 0:01:25]} 5. Bxc4 {[%emt 0:00:03]} e6 {[%emt 0:00:43]} 6. Nf3 {[%emt 0:00:40]} Nf6 {[%emt 0:00:38]} 7. O-O {[%emt 0:00:18]} Be7 {[%emt 0:01:04]} 8. Nc3 {[%emt 0:00:21]} O-O {[%emt 0:01:57]} 9. Re1 {[%emt 0:03:12]} a6 {[%emt 0:07:18]} 10. a3 {[%emt 0:01:29]} b5 {[%emt 0:00:37]} 11. Ba2 {[%emt 0:00:10]} Bb7 {[%emt 0:00:47]} 12. Qe2 {[%emt 0:02:57]} Re8 {[%emt 0:02:17]} 13. Bxe6 {[%emt 0:03:33]} Bxf3 {[%emt 0:04:30]} 14. Qxf3 {[%emt 0:00:02]} Ra7 {[%emt 0:00:13]} 15. Ba2 {[%emt 0:02:38]} Qxd4 {[%emt 0:06:29]} 16. Be3 {[%emt 0:00:45]} Qd7 17. Rad1 {[%emt 0:02:38]} Bd6 {[%emt 0:09:43]} 18. Bxa7 {[%emt 0:04:00]} Rxe1+ {[%emt 0:01:24]} 19. Rxe1 {[%emt 0:00:01]} Qxa7 {[%emt 0:00:31]} 20. Nd5 {[%emt 0:06:37]} Nxd5 {[%emt 0:08:55]} 21. Re8+ {[%emt 0:00:53]} Bf8 {[%emt 0:00:08]} 22. Qxd5 {[%emt 0:00:17]} Qc7 {[%emt 0:01:22]} 23. Qxf7+ {[%emt 0:00:09]} Qxf7 {[%emt 0:00:08]} 24. Bxf7+ {[%emt 0:00:04]} Kxf7 {[%emt 0:00:14]} 25. Rxb8 {[%emt 0:00:02]} Be7 {[%emt 0:06:23]} 26. Rb6 {[%emt 0:01:27]} Bf6 {[%emt 0:00:13]} 27. b3 {[%emt 0:00:38]} a5 {[%emt 0:00:58]} 28. Rxb5 {[%emt 0:00:15]} Bc3 {[%emt 0:00:08]} 29. Kf1 {[%emt 0:02:28]} Ke6 {[%emt 0:01:32]} 30. Rc5 {[%emt 0:00:16]} Bd2 {[%emt 0:00:22]} 31. Ke2 {[%emt 0:00:01]} Kd6 {[%emt 0:00:01]} 32. Rh5 {[%emt 0:01:40]} Bc3 {[%emt 0:02:53]} 33. Rxh7 {[%emt 0:00:26]} 1-0

[Event "Torneo Interdepartamental 2019"]
[Site "Montevideo"]
[Date "2019.08.25"]
[Round "5.6"]
[White "De Cuadro, Dionisio"]
[Black "Pinero, Ismael"]
[Result "0-1"]
[ECO "E62"]
[WhiteElo "1654"]
[BlackElo "1908"]
[Annotator "NA"]
[PlyCount "92"]
[EventDate "2019.08.23"]
[EventType "team-tourn"]
[EventCountry "URU"]
[SourceTitle "playchess.com"]
[Source "ChessBase"]
[SourceQuality "1"]
[TimeControl "5400+30"]

1. Nf3 {[%emt 0:00:00]} Nf6 {[%emt 0:00:00]} 2. c4 {[%emt 0:00:00]} g6 {[%emt 0:00:00]} 3. g3 {[%emt 0:00:02]} Bg7 {[%emt 0:00:00]} 4. Bg2 {[%emt 0:00:08]} O-O {[%emt 0:00:07]} 5. Nc3 {[%emt 0:00:11]} d6 {[%emt 0:00:03]} 6. d4 {[%emt 0:00:29]} Nc6 {[%emt 0:01:21]} 7. O-O {[%emt 0:00:09]} e5 {[%emt 0:00:28]} 8. dxe5 {[%emt 0:01:11]} dxe5 {[%emt 0:00:23]} 9. Bg5 {[%emt 0:00:57]} Qxd1 {[%emt 0:06:25]} 10. Raxd1 {[%emt 0:01:46]} h6 {[%emt 0:01:53]} 11. Bxf6 {[%emt 0:00:58]} Bxf6 {[%emt 0:00:02]} 12. Nd5 {[%emt 0:00:15]} Bd8 {[%emt 0:00:10]} 13. b4 {[%emt 0:02:04]} f6 {[%emt 0:01:14]} 14. b5 {[%emt 0:04:26]} Na5 {[%emt 0:00:03]} 15. c5 {[%emt 0:01:21]} c6 {[%emt 0:04:34]} 16. bxc6 {[%emt 0:00:48]} bxc6 17. Nb4 Be7 {[%emt 0:06:12]} 18. Nh4 {[%emt 0:00:48]} Kg7 {[%emt 0:04:08]} 19. Nxc6 {[%emt 0:08:00]} Nxc6 {[%emt 0:00:19]} 20. Bxc6 {[%emt 0:00:13]} Rb8 {[%emt 0:00:10]} 21. Rc1 {[%emt 0:01:17]} Rb2 {[%emt 0:03:18]} 22. a4 {[%emt 0:00:21]} Rxe2 {[%emt 0:00:37]} 23. Rfd1 {[%emt 0:00:29]} f5 {[%emt 0:05:51]} 24. Ng2 {[%emt 0:00:08]} f4 {[%emt 0:02:36]} 25. Re1 {[%emt 0:02:31]} Rxe1+ {[%emt 0:00:55]} 26. Nxe1 {[%emt 0:00:10]} fxg3 {[%emt 0:00:23]} 27. hxg3 {[%emt 0:00:01]} Rf6 {[%emt 0:00:26]} 28. Be4 {[%emt 0:01:28]} Ra6 {[%emt 0:00:30]} 29. Nd3 {[%emt 0:06:07]} Rxa4 {[%emt 0:00:48]} 30. Bc6 {[%emt 0:00:30]} Ra5 {[%emt 0:00:19]} 31. Nxe5 {[%emt 0:04:58]} Rxc5 {[%emt 0:00:21]} 32. Rxc5 {[%emt 0:01:54]} Bxc5 {[%emt 0:00:19]} 33. Kg2 {[%emt 0:00:40]} Bd4 {[%emt 0:01:04]} 34. Nd3 {[%emt 0:01:05]} Kf6 {[%emt 0:04:41]} 35. f4 {[%emt 0:00:40]} a5 {[%emt 0:00:50]} 36. Kf3 {[%emt 0:01:02]} Bf5 {[%emt 0:00:25]} 37. Nc1 {[%emt 0:01:25]} Bc2 {[%emt 0:01:52]} 38. g4 {[%emt 0:01:54]} Bb2 {[%emt 0:01:32]} 39. Ne2 {[%emt 0:00:41]} a4 {[%emt 0:00:12]} 40. Bd5 {[%emt 0:00:19]} Bb1 {[%emt 0:01:27]} 41. Ke3 {[%emt 0:00:31]} a3 {[%emt 0:00:10]} 42. g5+ {[%emt 0:13:20]} hxg5 {[%emt 0:03:33]} 43. fxg5+ {[%emt 0:00:14]} Kxg5 {[%emt 0:00:12]} 44. Kd2 {[%emt 0:00:20]} a2 {[%emt 0:00:12]} 45. Bxa2 {[%emt 0:00:38]} Bxa2 {[%emt 0:00:12]} 46. Kc2 {[%emt 0:00:08]} Be5 {[%emt 0:00:10]} 0-1

[Event "Torneo Interdepartamental 2019"]
[Site "Montevideo"]
[Date "2019.08.25"]
[Round "5.7"]
[White "Carbone, Diego"]
[Black "Castro, Cesar"]
[Result "1-0"]
[ECO "D02"]
[WhiteElo "2237"]
[BlackElo "2082"]
[Annotator "ChessBase"]
[PlyCount "67"]
[EventDate "2019.08.23"]
[EventType "team-tourn"]
[EventCountry "URU"]
[SourceTitle "playchess.com"]
[Source "ChessBase"]
[SourceQuality "1"]
[TimeControl "5400+30"]

1. d4 {[%emt 0:07:40]} d5 {[%emt 0:00:00]} 2. Nf3 {[%emt 0:01:17]} Nf6 {[%emt 0:00:00]} 3. c4 {[%emt 0:00:07]} e6 {[%emt 0:00:00]} 4. g3 {[%emt 0:00:09]} Nbd7 {[%emt 0:00:00]} 5. Bg2 {[%emt 0:00:27]} c6 {[%emt 0:00:00]} 6. O-O {[%emt 0:03:18]} Bd6 {[%emt 0:00:38]} 7. Nfd2 {[%emt 0:01:11]} O-O {[%emt 0:00:35]} 8. Nc3 {[%emt 0:00:20]} Bb4 {[%emt 0:08:58]} 9. e4 {[%emt 0:02:14]} Bxc3 {[%emt 0:01:15]} 10. bxc3 {[%emt 0:00:07]} Nxe4 {[%emt 0:00:24]} 11. Nxe4 {[%emt 0:01:32]} dxe4 {[%emt 0:00:04]} 12. Bxe4 {[%emt 0:00:11]} e5 {[%emt 0:04:02]} 13. Re1 {[%emt 0:06:22]} f5 {[%emt 0:02:24]} 14. Bg2 {[%emt 0:02:17]} e4 {[%emt 0:00:19]} 15. f3 {[%emt 0:02:48]} Nf6 {[%emt 0:00:50]} 16. Rb1 {[%emt 0:23:34]} h6 {[%emt 0:09:32]} 17. Bf4 {[%emt 0:01:11]} exf3 {[%emt 0:14:16]} 18. Bxf3 {[%emt 0:05:53]} Ne4 {[%emt 0:00:09]} 19. Qc2 {[%emt 0:02:53]} b6 {[%emt 0:02:16]} 20. Be5 {[%emt 0:02:53]} Be6 {[%emt 0:00:38]} 21. Qd3 {[%emt 0:09:21]} Qd7 {[%emt 0:02:39]} 22. Rbd1 {[%emt 0:00:02]} Rad8 {[%emt 0:00:59]} 23. Rf1 {[%emt 0:07:18]} Qe7 {[%emt 0:10:36]} 24. Rde1 {[%emt 0:04:43]} Qd7 {[%emt 0:07:09]} 25. Bg2 {[%emt 0:02:55]} Qe7 {[%emt 0:00:51]} 26. g4 {[%emt 0:01:08]} Nd6 {[%emt 0:11:08]} 27. Bxd6 {[%emt 0:01:46]} Qxd6 {[%emt 0:00:25]} 28. gxf5 {[%emt 0:00:10]} Bc8 {[%emt 0:00:36]} 29. Qe4 {[%emt 0:01:13]} Bd7 {[%emt 0:02:12]} 30. Qe5 {[%emt 0:01:11]} Qa3 {[%emt 0:00:15]} 31. f6 {[%emt 0:00:27]} Qxc3 {[%emt 0:02:35]} 32. fxg7 {[%emt 0:00:54]} Rfe8 {[%emt 0:00:02]} 33. Qf6 {[%emt 0:02:46]} Qxc4 {[%emt 0:00:10]} 34. Rxe8+ {[%emt 0:00:07]} 1-0

[Event "Torneo Interdepartamental 2019"]
[Site "Montevideo"]
[Date "2019.08.25"]
[Round "5.8"]
[White "Belistri, Ubaldo"]
[Black "Vazquez, Facundo"]
[Result "1-0"]
[ECO "E85"]
[WhiteElo "1849"]
[BlackElo "2111"]
[Annotator "ChessBase"]
[PlyCount "113"]
[EventDate "2019.08.23"]
[EventType "team-tourn"]
[EventCountry "URU"]
[SourceTitle "playchess.com"]
[Source "ChessBase"]
[SourceQuality "1"]
[TimeControl "5400+30"]

1. d4 {[%emt 0:00:00]} Nf6 {[%emt 0:08:31]} 2. c4 {[%emt 0:00:00]} g6 {[%emt 0:00:06]} 3. Nc3 {[%emt 0:00:11]} Bg7 {[%emt 0:00:08]} 4. e4 {[%emt 0:00:21]} d6 {[%emt 0:00:07]} 5. f3 {[%emt 0:00:11]} O-O {[%emt 0:00:12]} 6. Be3 {[%emt 0:00:13]} e5 {[%emt 0:00:09]} 7. Nge2 {[%emt 0:01:24]} exd4 {[%emt 0:00:25]} 8. Nxd4 {[%emt 0:00:21]} Nc6 {[%emt 0:01:33]} 9. Qd2 {[%emt 0:02:15]} a6 {[%emt 0:01:02]} 10. Be2 {[%emt 0:02:14]} Ne5 {[%emt 0:01:04]} 11. O-O {[%emt 0:01:08]} c5 {[%emt 0:01:54]} 12. Nc2 {[%emt 0:01:02]} Be6 {[%emt 0:00:09]} 13. b3 {[%emt 0:00:55]} Qa5 {[%emt 0:00:11]} 14. Rfd1 {[%emt 0:08:40]} Rab8 {[%emt 0:03:01]} 15. a3 {[%emt 0:03:04]} Ne8 {[%emt 0:10:44]} 16. b4 {[%emt 0:09:24]} cxb4 {[%emt 0:02:16]} 17. axb4 {[%emt 0:00:22]} Qc7 {[%emt 0:00:17]} 18. Nd5 {[%emt 0:01:34]} Bxd5 {[%emt 0:02:13]} 19. cxd5 {[%emt 0:01:34]} Nc4 {[%emt 0:08:20]} 20. Bxc4 {[%emt 0:01:12]} Bxa1 {[%emt 0:00:40]} 21. Rxa1 {[%emt 0:04:13]} Qxc4 {[%emt 0:00:06]} 22. Bd4 {[%emt 0:01:18]} Rc8 {[%emt 0:02:57]} 23. Ne3 {[%emt 0:00:06]} Qc7 {[%emt 0:00:29]} 24. Ng4 {[%emt 0:00:34]} f6 {[%emt 0:01:04]} 25. Qf4 {[%emt 0:05:50]} Qe7 {[%emt 0:03:54]} 26. h4 {[%emt 0:00:27]} Rc4 {[%emt 0:02:38]} 27. Rd1 {[%emt 0:01:04]} Rxb4 {[%emt 0:05:51]} 28. h5 {[%emt 0:00:17]} Rxd4 {[%emt 0:08:15]} 29. Rxd4 {[%emt 0:00:06]} g5 {[%emt 0:00:32]} 30. Qc1 {[%emt 0:00:55]} b5 {[%emt 0:02:19]} 31. Rd2 Ng7 {[%emt 0:04:53]} 32. Rc2 {[%emt 0:06:36]} Ne8 {[%emt 0:07:27]} 33. Rc8 {[%emt 0:02:45]} a5 {[%emt 0:02:06]} 34. Qc6 {[%emt 0:01:18]} f5 {[%emt 0:03:14]} 35. Nh6+ {[%emt 0:01:51]} Kh8 {[%emt 0:01:58]} 36. Nxf5 {[%emt 0:00:03]} Qe5 {[%emt 0:01:27]} 37. Qxb5 {[%emt 0:01:29]} g4 {[%emt 0:01:01]} 38. fxg4 {[%emt 0:07:02]} Rg8 {[%emt 0:01:37]} 39. Qa4 {[%emt 0:03:03]} Nf6 {[%emt 0:01:51]} 40. Rxg8+ {[%emt 0:03:26]} Kxg8 {[%emt 0:00:02]} 41. Qxa5 {[%emt 0:00:51]} Nxg4 {[%emt 0:02:42]} 42. Qd8+ {[%emt 0:00:39]} Kf7 {[%emt 0:00:03]} 43. Qd7+ {[%emt 0:00:38]} Kf8 {[%emt 0:00:41]} 44. Qxd6+ {[%emt 0:00:23]} Qxd6 {[%emt 0:00:01]} 45. Nxd6 {[%emt 0:00:26]} Ke7 {[%emt 0:00:38]} 46. Nf5+ {[%emt 0:02:40]} Kf6 {[%emt 0:00:53]} 47. Kf1 {[%emt 0:03:15]} Ke5 {[%emt 0:00:33]} 48. d6 {[%emt 0:05:49]} Nf6 {[%emt 0:01:30]} 49. Ng3 {[%emt 0:00:19]} Kf4 {[%emt 0:00:30]} 50. Kf2 {[%emt 0:00:32]} Ng4+ {[%emt 0:00:09]} 51. Ke2 {[%emt 0:00:45]} Ne5 {[%emt 0:00:44]} 52. Nf1 {[%emt 0:01:52]} Kxe4 {[%emt 0:00:18]} 53. Ne3 {[%emt 0:00:16]} Nd7 {[%emt 0:00:17]} 54. g4 {[%emt 0:00:12]} Ne5 {[%emt 0:01:31]} 55. g5 {[%emt 0:00:26]} Kd4 {[%emt 0:02:31]} 56. g6 {[%emt 0:00:09]} hxg6 {[%emt 0:00:03]} 57. h6 {[%emt 0:00:03] Kd5} 1-0